Cogmind - Beta 16 @@@ ROGUE MODE // 2025.11.27 @ 23:24:04 Player: Peregrine Result: Self-destructed Performance ------------- Evolutions (1) 500 Regions Visited (3) 600 Robots Destroyed (45) 225 Value Destroyed (990) 990 Prototype IDs (2) 40 Alien Tech Used (0) 0 Bonus (0) 0 TOTAL SCORE: 2355 Bonus ------- None Cogmind --------- Core Integrity 169/400 Matter 300/300 Energy 250/250 System Corruption 0% Temperature Cool (0) Movement Rolling (90) Location -9/Materials Parts ------- > --- POWER (1) -------- Ion Engine > --- PROPULSION (3) --- Compact Wheel Compact Wheel > --- UTILITY (3) ------ Large Storage Unit Hardened Light Armor Plating Hacking Suite > --- WEAPON (2) ------- (None) > --- INVENTORY (15) --- Large Battery (200) Medium Matter Pod (100) Peak State ------------ > --- POWER ------------ Ion Engine > --- PROPULSION ------- Aluminum Leg Aluminum Leg Aluminum Leg > --- UTILITY ---------- Improved Heat Sink Large Storage Unit Hacking Suite > --- WEAPON ----------- Beam Rifle Beam Cannon > --- INVENTORY -------- Ion Engine Aluminum Leg Aluminum Leg Compact Wheel Compact Wheel Large Battery Medium Matter Pod Light EM Pulse Cannon Grenade Launcher [Rating: 15] Favorites ----------- Power Ion Engine Engine Ion Engine Propulsion Aluminum Leg Leg Aluminum Leg Wheel Compact Wheel Utility Heat Sink Device Heat Sink Storage Large Storage Unit Hackware Hacking Suite Protection Hardened Light Armor Plating Weapon Beam Rifle Energy Gun Beam Rifle Energy Cannon Beam Cannon Ballistic Gun Assault Rifle Launcher Grenade Launcher Build | -11 -10 -10 -9 ------- Run | Yrd Mat Min Mat Slots Evolved 2 | . . . 2 Power . | . . . . Propulsion 1 | . . . 1 Utility 1 | . . . 1 Weapon . | . . . . Parts Attached 23 | . 9 3 11 Power 2 | . 1 . 1 Engine 2 | . 1 . 1 Core . | . . . . Reactor . | . . . . Propulsion 10 | . 2 2 6 Treads . | . . . . Leg 8 | . 2 2 4 Wheel 2 | . . . 2 Hover . | . . . . Flight . | . . . . Utility 5 | . 2 1 2 Device 2 | . 1 1 . Storage 1 | . 1 . . Processor . | . . . . Hackware 1 | . . . 1 Protection 1 | . . . 1 Artifact . | . . . . Weapon 6 | . 4 . 2 Energy Gun 3 | . 2 . 1 Energy Cannon 2 | . 2 . . Ballistic Gun . | . . . . Ballistic Cannon . | . . . . Launcher 1 | . . . 1 Special Weapon . | . . . . Impact Weapon . | . . . . Slashing Weapon . | . . . . Piercing Weapon . | . . . . Special Melee Weapon . | . . . . Unidentified Prototypes . | . . . . Parts Lost 9 | . . . 9 Power . | . . . . Propulsion 4 | . . . 4 Utility 1 | . . . 1 Weapon 4 | . . . 4 Highest Loss Streak 6 | . . . 6 To Critical Strikes . | . . . . Average Backups 7 | 6 7 10 5 Power . | 1 . 1 . Propulsion 2 | 4 2 4 2 Utility 1 | . 1 3 2 Weapon 1 | 1 2 2 . Tool/Special . | . . . . Unused Backups 14 | . 12 . 2 Power 1 | . 1 . . Propulsion 6 | . 5 . 1 Utility 3 | . 2 . 1 Weapon 4 | . 4 . . Tool/Special . | . . . . Average Slot Usage (%) 96 | . 98 100 87 Engine 13 | . 14 14 11 Leg 27 | . 28 28 25 Wheel 1 | . . . 5 Device 11 | . 12 14 4 Storage 13 | . 14 14 11 Hackware 1 | . . . 9 Energy Gun 18 | . 21 14 9 Energy Cannon 7 | . 6 14 6 Peak Build Rating 15 | 6 10 11 15 Average Rating 9 | 6 9 10 11 On Entrance 8 | 6 6 9 11 Avg Prop Armor Cover (%) 8 | . . . 8 Naked Turns . | . . . . Heaviest Build 32 | 13 32 32 32 Greatest Support 32 | 20 20 20 32 Greatest Overweight (x) 1 | . 1 1 1 Average Overweight (x) . | . . 1 . Largest Inventory Capacity 15 | 8 15 15 15 Average Capacity 12 | 8 10 15 15 Most Carried 12 | 6 10 12 10 Average Carried 7 | 6 7 10 5 Final Capacity 15 | 8 15 15 15 Final Carried 11 | 6 10 11 2 Class Distribution -------------------- 87% | Mutant 12% | Scavenger-Mutant Dominant Class ---------------- Mutant | -10/Materials Mutant | -10/Mines Scavenger-Mutant | -9/Materials Resources | -11 -10 -10 -9 ----------- Run | Yrd Mat Min Mat Matter Collected 600 | 200 190 109 101 Remotely . | . . . . Salvage Created 1478 | . 624 131 723 Parts 86 | . 37 15 34 Haulers Intercepted . | . . . . Recyclers Shooed 3 | . . . 3 Parts Field Recycled . | . . . . Retrieved Matter . | . . . . Parts Self-Destructed . | . . . . Prevented . | . . . . Parts Restored . | . . . . Kills | -11 -10 -10 -9 ------- Run | Yrd Mat Min Mat Combat Hostiles Destroyed 31 | . 13 5 13 Guns 21 | . 12 2 7 Cannons 8 | . . 3 5 Classes Destroyed 10 | . 6 . 4 Worker 4 | . 1 . 3 Builder 5 | . 3 . 2 Recycler 2 | . . . 2 Operator 1 | . 1 . . Watcher 2 | . 1 . 1 Swarmer 10 | . 3 3 4 Grunt 17 | . 10 2 5 Brawler 2 | . . . 2 Duelist 1 | . . . 1 Sentry 1 | . . . 1 Best Kill Streak 12 | . 4 2 12 Combat Bots Only 7 | . 4 2 7 Max Kills in Single Turn 2 | . 2 1 2 Gunslinging 1 | . 1 . . Exploded . | . . . . Melee . | . . . . Uniques/NPCs Destroyed . | . . . . Combat | -11 -10 -10 -9 -------- Run | Yrd Mat Min Mat Hostile Shots Fired 180 | . 49 18 113 Missed 49 | . 19 6 24 Hits 131 | . 30 12 89 Melee 9 | . . . 9 Projectile 122 | . 30 12 80 Critical Strikes 2 | . . . 2 Damage Taken 1687 | . 404 118 1165 Core 334 | . 103 . 231 Absorbed by Shields . | . . . . Core Remaining (%) 79 | 100 . 58 . Volleys Fired 119 | . 42 10 67 Largest 2 | . 2 2 2 Hottest 116 | . 112 116 116 Shots Fired 196 | . 85 21 90 Gun 145 | . 79 11 55 Cannon 49 | . 6 10 33 Launcher 2 | . . . 2 Special . | . . . . Kinetic . | . . . . Thermal 176 | . 79 21 76 Explosive 2 | . . . 2 Electromagnetic 18 | . 6 . 12 Robot Hit Streak 15 | . 6 3 15 Robot Miss Streak 5 | . 4 5 5 Penetration Max . | . . . . Secondary Targets 1 | . 1 . . Max Gunslinging Chain 1 | . 1 . . Shots Hit Robots 122 | . 51 9 62 Core Hits 61 | . 24 7 30 Critical Kills . | . . . . Critical Parts Destroyed . | . . . . Critical Strikes 16 | . 9 1 6 Burn 15 | . 9 1 5 Corrupt 1 | . . . 1 Melee Attacks . | . . . . Impact . | . . . . Slashing . | . . . . Piercing . | . . . . Sneak Attacks . | . . . . Combat Hostiles . | . . . . Follow-up Attacks . | . . . . Damage Inflicted 2143 | . 801 139 1203 Guns 1319 | . 751 85 483 Cannons 552 | . 50 54 448 Explosions 272 | . . . 272 Melee . | . . . . Ramming . | . . . . Kinetic . | . . . . Thermal 1652 | . 751 139 762 Explosive 272 | . . . 272 Electromagnetic 219 | . 50 . 169 Impact . | . . . . Slashing . | . . . . Piercing . | . . . . Highest Corruption 4 | . 4 4 . Average Corruption 2 | . 2 4 . Corruption Purged . | . . . . Corruption Blocked . | . . . . Effects 13 | . 10 3 . Message Errors 4 | . 3 1 . Matter Fused 3 | . 3 . . Energy Discharges 2 | . 1 1 . Data Loss (minor) 1 | . 1 . . Data Loss (major) 1 | . 1 . . Misfires 2 | . 1 1 . Overload Shots . | . . . . Overflow Damage . | . . . . Projectiles . | . . . . Explosions . | . . . . Melee . | . . . . Knockbacks . | . . . . Impact . | . . . . Kinetic . | . . . . Secondary . | . . . . Self-Inflicted Damage 71 | . . . 71 Shots 2 | . . . 2 Rammed . | . . . . Targets Rammed . | . . . . Kicked . | . . . . Crushed . | . . . . Highest Temperature 141 | . 141 123 81 Average Temperature 35 | . 44 49 24 Received Heat Transfer 375 | . 165 27 183 Siege Activations . | . . . . Martial Activations . | . . . . Shielding Activations . | . . . . Robots Disrupted . | . . . . Combat Hostiles . | . . . . Robots Corrupted . | . . . . Combat Hostiles . | . . . . Parts Fried . | . . . . Impact Corruptions . | . . . . Robots Melted 2 | . 1 . 1 Combat Hostiles 2 | . 1 . 1 Parts Melted 9 | . 2 1 6 Heat Transferred 5125 | . 2590 407 2128 Parts Sabotaged . | . . . . Parts Stolen . | . . . . Parts Stripped . | . . . . Power Chain Reactions . | . . . . Alert | -11 -10 -10 -9 ------- Run | Yrd Mat Min Mat Maximum Alert Level 1 | . . . 1 Low Security (%) 93 | 100 100 100 61 Level 1 6 | . . . 38 Level 2 . | . . . . Level 3 . | . . . . Level 4 . | . . . . Level 5 . | . . . . High Security . | . . . . Max Security . | . . . . Peak Influence 246 | . 172 97 246 Initial 27 | . . 27 26 Average 81 | . 68 59 149 Influence Increases 990 | . 390 150 450 Destroy 0b10 Robot/C 620 | . 260 100 260 Destroy 0b10 Robot/NC 70 | . 30 . 40 Destroy Leader 124 | . 52 20 52 Successful Hack 24 | . 16 . 8 Disable Machine 30 | . . . 30 Destroy Structure 17 | . 2 . 15 Lose Combat Pursuer 105 | . 30 30 45 Influence Decreases 784 | . 320 153 311 Entered New Map 84 | . . 43 41 Time Decay 610 | . 320 110 180 Lost Part 90 | . . . 90 Squads Dispatched 4 | . 3 . 1 Investigation 1 | . 1 . . Extermination . | . . . . Reinforcement 3 | . 2 . 1 Assault . | . . . . Garrison . | . . . . Intercept . | . . . . Searches Triggered . | . . . . Construction Impeded . | . . . . Haulers Reinforced . | . . . . Active Scanning Responses . | . . . . Cargo Convoy Interrupts . | . . . . Stealth | -11 -10 -10 -9 --------- Run | Yrd Mat Min Mat Distress Signals 3 | . 1 . 2 Communications Jammed . | . . . . Distress Signals . | . . . . Times Spotted 57 | . 24 6 27 Peak Tracking Total 6 | . 5 3 6 Tactical Retreats 4 | . 1 1 2 Traps | -11 -10 -10 -9 ------- Run | Yrd Mat Min Mat Traps Triggered 4 | . 4 . . Indirectly . | . . . . Trap Hack Attempts . | . . . . Triggered . | . . . . Disarmed . | . . . . Reprogrammed . | . . . . Reused . | . . . . Traps Extracted . | . . . . Installed . | . . . . Triggered . | . . . . Machines | -11 -10 -10 -9 ---------- Run | Yrd Mat Min Mat Machines Disabled 2 | . . . 2 Max in Single Turn 1 | . . . 1 Machines Repaired . | . . . . Machines Dismantled . | . . . . Machines Sabotaged . | . . . . Overloaded Fab Kills . | . . . . Hacking | -11 -10 -10 -9 --------- Run | Yrd Mat Min Mat Machines Accessed 9 | . 5 . 4 Terminals 8 | . 5 . 3 Fabricators . | . . . . Repair Stations . | . . . . Recycling Units . | . . . . Scanalyzers 1 | . . . 1 Garrison Access . | . . . . Total Hacks 27 | . 15 . 12 Successful 12 | . 5 . 7 Failed 14 | . 10 . 4 Catastrophic 1 | . 1 . . Database Lockouts 1 | . . . 1 Manual 13 | . 7 . 6 Terminals 25 | . 15 . 10 Fabricators . | . . . . Repair Stations . | . . . . Recycling Units . | . . . . Scanalyzers 2 | . . . 2 Garrison Access . | . . . . Terminal Hacks 6 | . 2 . 4 Prototype ID Bank 1 | . . . 1 Emergency Access Points 1 | . 1 . . Locate Traps 1 | . 1 . . Hauler Manifests 1 | . . . 1 Zone Layout 2 | . . . 2 Fabricator Hacks . | . . . . Repair Station Hacks . | . . . . Recycling Unit Hacks . | . . . . Scanalyzer 1 | . . . 1 Retrieve Study 1 | . . . 1 Garrison Access Hacks . | . . . . Unauthorized Hacks 5 | . 3 . 2 Terminals 5 | . 3 . 2 Botnet 5 | . 3 . 2 Fabricators . | . . . . Repair Stations . | . . . . Recycling Units . | . . . . Scanalyzers . | . . . . Garrison Access . | . . . . Data Cores Recovered . | . . . . Used . | . . . . Hacking Detections 8 | . 5 . 3 Full Trace Events 1 | . 1 . . Feedback Events 1 | . 1 . . Corruption 1 | . 1 . . Feedback Blocked . | . . . . Robot Schematics Acquired . | . . . . Robots Built . | . . . . Authchips . | . . . . Time . | . . . . Total Robot Build Rating . | . . . . Part Schematics Acquired . | . . . . Parts Built . | . . . . Authchips . | . . . . Time . | . . . . Total Part Build Rating . | . . . . Part Studies Acquired 1 | . . . 1 Parts Repaired . | . . . . Time . | . . . . Parts Recycled . | . . . . Recycled Matter . | . . . . Retrieved Matter . | . . . . Retrieved Components . | . . . . Parts Scanalyzed . | . . . . Part Schematics Acquired . | . . . . Parts Damaged . | . . . . Bothacking | -11 -10 -10 -9 ------------ Run | Yrd Mat Min Mat Used RIF Installer . | . . . . Robots Hacked . | . . . . Non-combat . | . . . . Combat . | . . . . Robot Hacks Applied . | . . . . Relay Couplers Released . | . . . . Fabnet Peak Effective % . | . . . . Robots Rewired . | . . . . Allies Hacked . | . . . . Hacks Repelled . | . . . . Allies | -11 -10 -10 -9 -------- Run | Yrd Mat Min Mat Total Allies . | . . . . Largest Group . | . . . . Highest-Rated Group . | . . . . Highest-Rated Ally . | . . . . Total Orders . | . . . . Ally Attacks . | . . . . Total Damage . | . . . . Kills . | . . . . Allies Corrupted . | . . . . Allies Melted . | . . . . Intel | -11 -10 -10 -9 ------- Run | Yrd Mat Min Mat Active Infowar (turns) . | . . . . Robot Analysis Total . | . . . . Derelict Logs Recovered . | . . . . Drone Launches . | . . . . Drone Recoveries . | . . . . Exploration | -11 -10 -10 -9 ------------- Run | Yrd Mat Min Mat Turns Passed 2034 | 5 1428 238 363 Spaces Moved 922 | 5 684 104 129 Core . | . . . . Treads . | . . . . Legs 872 | 5 684 104 79 Wheels 50 | . . . 50 Hover . | . . . . Flight . | . . . . Fastest Speed 90 | 120 120 190 90 Average Speed 150 | 120 148 190 135 Slowest Speed 190 | 120 190 190 190 Overloaded Moves . | . . . . Propulsion Burnouts . | . . . . Robots Hopped . | . . . . Potential Cave-ins . | . . . . Cave-ins Triggered . | . . . . Exploration Rate (%) 33 | 3 95 22 14 Regions Visited 3 Branch Regions 1 Pre-discovered Areas . | . . . . Known Exits Taken . | . . . . Unknown Exits Taken 3 | 1 1 1 . Scrap Searched 1 | . . 1 . Spaces Dug . | . . . . Terrain Destroyed 12 | . . . 12 Melee . | . . . . Projectile . | . . . . AOE 12 | . . . 12 Terrain Rammed . | . . . . Walls Destroyed . | . . . . Machines Disabled . | . . . . Actions | -11 -10 -10 -9 --------- Run | Yrd Mat Min Mat Total 1375 | 4 1019 125 227 Wait 268 | . 255 2 11 Move 919 | 4 683 103 129 Hop . | . . . . Pick Up 24 | . 16 4 4 Fast Attach . | . . . . Attach 11 | . 2 . 9 Detach . | . . . . Swap 14 | . 8 3 3 Drop 20 | . 13 3 4 Fire 119 | . 42 10 67 Melee . | . . . . Ram . | . . . . Kick . | . . . . Crush . | . . . . Escape Stasis . | . . . . Rewire . | . . . . Trap . | . . . . Miscellaneous . | . . . . Route ------- -11/Scrapyard -10/Materials (discovered 5 exits: *Mat x3 / [*Min x2]) -10/Mines -9/Materials History --------- Turn | Location | Event 1 | -11/Scrapyard | Discovered new exit (range 2) 6 | -11/Scrapyard | Entered Materials 78 | -10/Materials | Discovered new exit (range 8) 180 | -10/Materials | Discovered new exit (range 3) 315 | -10/Materials | Build established: Mutant 650 | -10/Materials | Discovered new exit (range 4) 823 | -10/Materials | Discovered new exit (range 15) 919 | -10/Materials | Discovered new exit (range 14) 1434 | -10/Materials | Entered Mines 1628 | -10/Mines | Discovered new exit (range 11) 1672 | -10/Mines | Entered Materials 1672 | -9/Materials | Evolved 2 slots: Propulsion x1, Utility x1 1832 | -9/Materials | Destroyed 7 combat bots 1857 | -9/Materials | Lost 6 parts (3n1u2w) 1998 | -9/Materials | Central database locked down 2031 | -9/Materials | Core integrity fell below 50% 2035 | -9/Materials | Self-destructed Last Messages --------------- 01949_ K-01 Serf collects debris. 01953_ K-01 Serf destroyed. 01953_ K-01 Serf collects debris. 01991_ K-01 Serf destroyed. 01994_ Acquired 26 matter. 01998_ Connecting with Scanalyzer... >>Study(Com. Wheel) Identified Com. Wheel... Downloading performance data... Effective improvements: -10 time/move 01998_ ALERT: Central database lockdown, local access denied. 02005_ W-16 Scout sends out distress signal. 02022_ U-05 Engineer lays Concrete. 02028_ S-10 Pest destroyed. 02028_ T-07 Excavator is excavating. 02029_ Sml. Laser destroyed. 02030_ Connecting with Terminal... 02033_ Aluminum Leg destroyed. 02034_ O-16 Technician: "IFF HANDSHAKE FAILED. SECURING TERMINAL." Map ----- +----------------------------------------------------+ | | | | | | | | | | | | | | | | | | | | | | | | | | | | | | | | | | | ?????????????????????????????????????????????????? | | ??????????????????????????? #????????????????????? | | ??????????????????????""""" #????????????????????? | | ????????????????????""""""" #????????????????????? | | ?????????????????? """"""" #????????????????????? | | ??????????????????? """"""" #????????????????????? | | ?????????????????????"""""" #????????????????????? | | ??????????????????????? #######??????????????? | | ???????????????????????##@### #??????????????? | | ??????????????########## o ###+#### #????? | | ??????????????# * T ???????? | | ??????????????# ##### %ss ### ??????????? | | #########?????# #???## ### #??????????????? | | #####?# #????# #?### ###??????????????? | | """ # #?# #????# #???? #???????????????? | | """ # #?# #?####+###?? ##???????????????? | | """ # #?# #?# #??##????????????????? | | + #?# #?# "" #????????????????????? | | """ # #?# #?# ""S #????????????????????? | | """ # #?# #?# "" #????????????????????? | | """ # #?# #?# #????????????????????? | | # ###+##+### #????????????????????? | | ###+##### # ##+#####????????????????????? | | ??# ###?# # """ ## #????????????????????????? | | ### #T### # """ ## #????????????????????????? | | # """ ## #????????????????????????? | | + ## #????????????????????????? | | """ "" # """ ## #????????????????????????? | | """ T" # """ ## #????????????????????????? | | """ "" # """ ## #????????????????????????? | | # ## #????"???????????????????? | | ########### ###?""???????????????????? | | # """ #?????????????? | +----------------------------------------------------+ Best States ------------- Heat Dissipation 42 Energy Generation 10 Energy Capacity 250 Matter Stores 300 Matter Capacity 300 Sight Range 16 Terrain Scan Density 10 Armor Coverage 150 Evasion (%) 55 Offensive Hacking 10 Item Schematics ----------------- None Robot Schematics ------------------ None Fabricated ------------ Nothing Repaired ---------- Nothing Studied --------- Com. Wheel | -9/Materials | Hacked Alien Tech Used ----------------- None Achievements -------------- None Challenges ------------ None Game ------ Seed HardcellSubdwellerShotgun Manual? 0 Play Time 00:18:51 Cumulative 138.1 hours Start 2025.11.27 @ 23:03:29 End 2025.11.27 @ 23:24:04 Sessions 1 Manual Loads 0 Difficulty Rogue Special Mode None Game No. 168 Rogue 153 Adventurer 15 Explorer 0 Win Type - Total 6 Types 3/0/2/0/0/0/1/0/0/0 Lore% 43 Gallery% 66 Achievement% 38 Wizard Run 0 Options --------- Layout 0 ASCII 0 Keyboard 0 Movement Mouse Keybinds 0 Fullscreen 2 Font 36/Smallcaps Map View 76x50 Zoom Use 0% Tactical HUD 1 Map Filters NONE Filters NONE Steam 1 RUN: a8468008-aca8-45be-b297-ce121f535558